[Event "*** Titled Tuesday Blitz"]
[Site "Chess.com"]
[Date "2021.03.16"]
[Round "5"]
[White "DonBroca"]
[Black "MartinMatthiesen"]
[Result "0-1"]
[WhiteElo "2205"]
[BlackElo "2378"]
[TimeControl "180+1"]
[EndTime "10:55:36 PDT"]
[Termination "MartinMatthiesen won by resignation"]

1. e4 {[%clk 0:03:00.9]} 1... e5 {[%clk 0:02:54.3]} 2. Nf3 {[%clk 0:03:00.7]}
2... Nc6 {[%clk 0:02:53.7]} 3. Bb5 {[%clk 0:03:01.2]} 3... a6 {[%clk 0:02:53.6]}
4. Ba4 {[%clk 0:03:01.7]} 4... Nf6 {[%clk 0:02:53.8]} 5. O-O {[%clk 0:03:01.3]}
5... Be7 {[%clk 0:02:54]} 6. Re1 {[%clk 0:03:00.8]} 6... b5 {[%clk 0:02:54]} 7.
Bb3 {[%clk 0:03:01.4]} 7... d6 {[%clk 0:02:54.3]} 8. c3 {[%clk 0:03:01.2]} 8...
O-O {[%clk 0:02:53.4]} 9. h3 {[%clk 0:03:01.6]} 9... Nb8 {[%clk 0:02:52.7]} 10.
d4 {[%clk 0:03:01.6]} 10... Nbd7 {[%clk 0:02:52.6]} 11. Nbd2 {[%clk 0:03:01.1]}
11... Bb7 {[%clk 0:02:52]} 12. d5 {[%clk 0:02:57.4]} 12... Nc5 {[%clk
0:02:48.8]} 13. Bc2 {[%clk 0:02:56.1]} 13... c6 {[%clk 0:02:48.7]} 14. b4 {[%clk
0:02:40.7]} 14... Ncd7 {[%clk 0:02:47.8]} 15. dxc6 {[%clk 0:02:38.1]} 15... Bxc6
{[%clk 0:02:48.7]} 16. Nf1 {[%clk 0:02:38.4]} 16... Rc8 {[%clk 0:02:35.9]} 17.
g4 {[%clk 0:02:35.4]} 17... Bb7 {[%clk 0:02:33.8]} 18. Bd2 {[%clk 0:02:34.6]}
18... Nb6 {[%clk 0:02:30]} 19. Ng3 {[%clk 0:02:28.5]} 19... g6 {[%clk
0:02:25.8]} 20. Kh2 {[%clk 0:02:13.2]} 20... Nc4 {[%clk 0:02:19.5]} 21. Bh6
{[%clk 0:02:12.3]} 21... Re8 {[%clk 0:02:15.5]} 22. Rg1 {[%clk 0:02:05.6]} 22...
Bf8 {[%clk 0:02:07.6]} 23. Bxf8 {[%clk 0:01:57.2]} 23... Rxf8 {[%clk 0:02:05.4]}
24. Rc1 {[%clk 0:01:29.3]} 24... Qc7 {[%clk 0:01:50.2]} 25. Bb3 {[%clk
0:01:28.3]} 25... Nxe4 {[%clk 0:01:36]} 26. Qe2 {[%clk 0:01:17.6]} 26... Nxg3
{[%clk 0:01:26.1]} 27. Rxg3 {[%clk 0:01:18.5]} 27... Qc6 {[%clk 0:01:12]} 28.
Nh4 {[%clk 0:01:15.3]} 28... Rfe8 {[%clk 0:00:57.1]} 29. Bxc4 {[%clk 0:01:06.7]}
29... Qxc4 {[%clk 0:00:55.4]} 30. Qe3 {[%clk 0:01:06.9]} 30... d5 {[%clk
0:00:46.9]} 31. Qh6 {[%clk 0:01:05.4]} 31... Qf4 {[%clk 0:00:37]} 32. Qxf4
{[%clk 0:00:40.7]} 32... exf4 {[%clk 0:00:36.5]} 33. Rd3 {[%clk 0:00:35.2]}
33... Re2 {[%clk 0:00:33.6]} 34. Kg1 {[%clk 0:00:31]} 34... d4 {[%clk
0:00:25.4]} 35. Rxd4 {[%clk 0:00:25.7]} 35... Rxc3 {[%clk 0:00:24.7]} 36. Rdd1
{[%clk 0:00:14.9]} 36... Rxh3 {[%clk 0:00:21.6]} 37. Ng2 {[%clk 0:00:12]} 37...
f3 {[%clk 0:00:18]} 38. Nf4 {[%clk 0:00:12.3]} 38... Rh4 {[%clk 0:00:17.8]} 39.
Nxe2 {[%clk 0:00:08.1]} 39... fxe2 {[%clk 0:00:14.2]} 40. Rd8+ {[%clk 0:00:09]}
40... Kg7 {[%clk 0:00:14.1]} 41. f3 {[%clk 0:00:09.3]} 41... h5 {[%clk
0:00:12.4]} 42. Kf2 {[%clk 0:00:10.2]} 42... hxg4 {[%clk 0:00:12.2]} 43. fxg4
{[%clk 0:00:10.3]} 43... Rxg4 {[%clk 0:00:12.4]} 44. Re1 {[%clk 0:00:10.7]}
44... Rxb4 {[%clk 0:00:10.8]} 45. Rd7 {[%clk 0:00:10.1]} 45... Be4 {[%clk
0:00:09.8]} 46. Rxe2 {[%clk 0:00:09]} 46... Bf5 {[%clk 0:00:10]} 47. Red2 {[%clk
0:00:06.8]} 47... Bxd7 {[%clk 0:00:09.3]} 48. Rxd7 {[%clk 0:00:05.9]} 48... Ra4
{[%clk 0:00:10.2]} 49. Rd2 {[%clk 0:00:05.6]} 49... g5 {[%clk 0:00:09.8]} 50.
Ke3 {[%clk 0:00:06.5]} 50... Kg6 {[%clk 0:00:09.5]} 51. Kf3 {[%clk 0:00:07.4]}
51... f6 {[%clk 0:00:08.7]} 52. Kg3 {[%clk 0:00:08.3]} 52... Ra3+ {[%clk
0:00:08.6]} 53. Kg2 {[%clk 0:00:07.8]} 53... g4 {[%clk 0:00:08.7]} 54. Kf2
{[%clk 0:00:07.8]} 54... Kg5 {[%clk 0:00:09.1]} 55. Kg2 {[%clk 0:00:07.5]} 55...
f5 {[%clk 0:00:09.5]} 56. Rc2 {[%clk 0:00:07.1]} 56... a5 {[%clk 0:00:09]} 57.
Rd2 {[%clk 0:00:06.7]} 57... b4 {[%clk 0:00:09.5]} 58. Rc2 {[%clk 0:00:06.6]}
58... a4 {[%clk 0:00:09.8]} 59. Rd2 {[%clk 0:00:06.5]} 59... b3 {[%clk
0:00:10.2]} 60. Rd3 {[%clk 0:00:06.8]} 60... b2 {[%clk 0:00:09.6]} 61. Rd1
{[%clk 0:00:06.4]} 61... Rxa2 {[%clk 0:00:09.4]} 62. Rb1 {[%clk 0:00:07.3]}
62... a3 {[%clk 0:00:08.7]} 63. Kg3 {[%clk 0:00:08.2]} 63... f4+ {[%clk
0:00:08.1]} 64. Kf2 {[%clk 0:00:07.3]} 64... Ra1 {[%clk 0:00:08.1]} 65. Rf1
{[%clk 0:00:07.6]} 65... Rxf1+ {[%clk 0:00:07.6]} 0-1

[Event "*** Titled Tuesday Blitz"]
[Site "Chess.com"]
[Date "2021.03.16"]
[Round "5"]
[White "Chesseyat004"]
[Black "Mrlammy"]
[Result "0-1"]
[WhiteElo "2465"]
[BlackElo "2324"]
[TimeControl "180+1"]
[EndTime "10:55:39 PDT"]
[Termination "Mrlammy won by resignation"]

1. e4 {[%clk 0:03:00.9]} 1... e6 {[%clk 0:03:00]} 2. d4 {[%clk 0:03:00.3]} 2...
d5 {[%clk 0:03:00.1]} 3. e5 {[%clk 0:03:00.6]} 3... c5 {[%clk 0:02:59.8]} 4. c3
{[%clk 0:03:01]} 4... Nc6 {[%clk 0:03:00.4]} 5. Nf3 {[%clk 0:03:01]} 5... Qb6
{[%clk 0:03:00.4]} 6. a3 {[%clk 0:03:01.2]} 6... Nh6 {[%clk 0:03:00.5]} 7. b4
{[%clk 0:02:57.4]} 7... cxd4 {[%clk 0:03:00.5]} 8. b5 {[%clk 0:02:55.6]} 8...
Ne7 {[%clk 0:02:49.2]} 9. cxd4 {[%clk 0:02:44.4]} 9... Bd7 {[%clk 0:02:46.5]}
10. Nbd2 {[%clk 0:02:37.2]} 10... Nhf5 {[%clk 0:02:39.3]} 11. Qa4 {[%clk
0:02:23.6]} 11... h5 {[%clk 0:02:32.2]} 12. Rb1 {[%clk 0:02:15.1]} 12... Rc8
{[%clk 0:02:10.1]} 13. Be2 {[%clk 0:01:52.8]} 13... Ng6 {[%clk 0:02:06.2]} 14.
g3 {[%clk 0:01:50.9]} 14... a6 {[%clk 0:01:39.4]} 15. O-O {[%clk 0:01:46.7]}
15... Be7 {[%clk 0:01:22.1]} 16. Re1 {[%clk 0:00:37.3]} 16... O-O {[%clk
0:01:01.6]} 17. Qb3 {[%clk 0:00:35.5]} 17... axb5 {[%clk 0:00:57.5]} 18. Bxb5
{[%clk 0:00:34]} 18... Bxb5 {[%clk 0:00:46.8]} 19. Qxb5 {[%clk 0:00:32.9]} 19...
Qxb5 {[%clk 0:00:35.8]} 20. Rxb5 {[%clk 0:00:33.8]} 20... Rc7 {[%clk 0:00:36]}
21. Nb3 {[%clk 0:00:28.5]} 21... Rfc8 {[%clk 0:00:34.3]} 22. Bd2 {[%clk
0:00:27.5]} 22... Bxa3 {[%clk 0:00:31.1]} 23. Rb1 {[%clk 0:00:25.5]} 23... Bf8
{[%clk 0:00:28.8]} 24. Na5 {[%clk 0:00:25.1]} 24... Rc2 {[%clk 0:00:24.1]} 25.
Be1 {[%clk 0:00:22.9]} 25... Rc1 {[%clk 0:00:19.4]} 26. Nxb7 {[%clk 0:00:22.1]}
26... Rxb1 {[%clk 0:00:19.6]} 27. Rxb1 {[%clk 0:00:22.4]} 27... Rb8 {[%clk
0:00:20.1]} 28. Rb5 {[%clk 0:00:20.4]} 28... h4 {[%clk 0:00:18.5]} 29. g4 {[%clk
0:00:19.8]} 29... Nfe7 {[%clk 0:00:18.4]} 30. Nd6 {[%clk 0:00:19.5]} 30... Rxb5
{[%clk 0:00:17.6]} 31. Nxb5 {[%clk 0:00:20.4]} 31... Nc6 {[%clk 0:00:17.2]} 32.
h3 {[%clk 0:00:20.7]} 32... Nf4 {[%clk 0:00:17.1]} 33. Kh2 {[%clk 0:00:21.1]}
33... Ne2 {[%clk 0:00:17.1]} 34. Bd2 {[%clk 0:00:18.8]} 34... Bb4 {[%clk
0:00:15.2]} 35. Kg2 {[%clk 0:00:18.4]} 35... Bxd2 {[%clk 0:00:14.7]} 36. Nxd2
{[%clk 0:00:19.1]} 36... Nexd4 {[%clk 0:00:15.4]} 37. Nxd4 {[%clk 0:00:19]}
37... Nxd4 {[%clk 0:00:16.3]} 38. f4 {[%clk 0:00:19.5]} 38... Kf8 {[%clk
0:00:16]} 39. Kf2 {[%clk 0:00:19.6]} 39... f6 {[%clk 0:00:14.3]} 40. Ke3 {[%clk
0:00:19.6]} 40... Nc2+ {[%clk 0:00:14.6]} 41. Kd3 {[%clk 0:00:19.5]} 41... Ne1+
{[%clk 0:00:15]} 42. Ke2 {[%clk 0:00:19.7]} 42... Nc2 {[%clk 0:00:15.4]} 43. Nf3
{[%clk 0:00:19.7]} 43... fxe5 {[%clk 0:00:13.6]} 44. Nxe5 {[%clk 0:00:20.6]}
44... Nd4+ {[%clk 0:00:09.9]} 45. Ke3 {[%clk 0:00:19.9]} 45... Nc2+ {[%clk
0:00:10.1]} 46. Kd2 {[%clk 0:00:20.2]} 46... Nd4 {[%clk 0:00:09.9]} 47. Ng6+
{[%clk 0:00:20.7]} 47... Ke8 {[%clk 0:00:08.9]} 48. Nxh4 {[%clk 0:00:21.6]}
48... Ke7 {[%clk 0:00:08.1]} 49. Kd3 {[%clk 0:00:22.1]} 49... Nc6 {[%clk
0:00:08.2]} 50. Nf3 {[%clk 0:00:22.7]} 50... Kf6 {[%clk 0:00:07.5]} 51. h4
{[%clk 0:00:23.2]} 51... e5 {[%clk 0:00:07.9]} 52. f5 {[%clk 0:00:22]} 52... e4+
{[%clk 0:00:07.4]} 53. Ke3 {[%clk 0:00:22.4]} 53... exf3 {[%clk 0:00:08.3]} 54.
Kxf3 {[%clk 0:00:23.3]} 54... Ne5+ {[%clk 0:00:07.9]} 55. Kf4 {[%clk 0:00:23.3]}
55... Nc6 {[%clk 0:00:07.9]} 56. g5+ {[%clk 0:00:23.5]} 56... Kf7 {[%clk
0:00:08.5]} 57. h5 {[%clk 0:00:23.8]} 57... d4 {[%clk 0:00:09]} 58. Ke4 {[%clk
0:00:24.1]} 58... Kf8 {[%clk 0:00:08.4]} 59. Kd3 {[%clk 0:00:19.5]} 59... Kf7
{[%clk 0:00:07.8]} 60. Ke4 {[%clk 0:00:19.9]} 60... Ke7 {[%clk 0:00:08.3]} 61.
Kd3 {[%clk 0:00:19.3]} 61... Ne5+ {[%clk 0:00:07.9]} 62. Kxd4 {[%clk 0:00:19.2]}
62... Nf3+ {[%clk 0:00:08.4]} 63. Ke4 {[%clk 0:00:19.8]} 63... Nxg5+ {[%clk
0:00:08.8]} 64. Kf4 {[%clk 0:00:20.5]} 64... Nh7 {[%clk 0:00:09.3]} 65. Kg4
{[%clk 0:00:20.2]} 65... Kf6 {[%clk 0:00:09.4]} 66. Kf4 {[%clk 0:00:20.8]} 66...
Nf8 {[%clk 0:00:08.8]} 67. Kg4 {[%clk 0:00:21.5]} 67... Nd7 {[%clk 0:00:08.8]}
68. Kf4 {[%clk 0:00:22.1]} 68... Ne5 {[%clk 0:00:08.7]} 69. Ke4 {[%clk
0:00:22.7]} 69... Nf7 {[%clk 0:00:09]} 70. Kf4 {[%clk 0:00:23.2]} 70... Nh6
{[%clk 0:00:09.7]} 0-1

[Event "*** Titled Tuesday Blitz"]
[Site "Chess.com"]
[Date "2021.03.16"]
[Round "5"]
[White "NateSolon"]
[Black "Fandorine"]
[Result "0-1"]
[WhiteElo "2557"]
[BlackElo "2875"]
[TimeControl "180+1"]
[EndTime "10:55:41 PDT"]
[Termination "Fandorine won on time"]

1. d4 {[%clk 0:03:00.9]} 1... Nf6 {[%clk 0:03:00]} 2. c4 {[%clk 0:03:00.1]} 2...
g6 {[%clk 0:03:00.4]} 3. Nc3 {[%clk 0:02:58.8]} 3... Bg7 {[%clk 0:03:00.8]} 4.
g3 {[%clk 0:02:58.7]} 4... O-O {[%clk 0:03:00.6]} 5. Bg2 {[%clk 0:02:58.9]} 5...
d6 {[%clk 0:03:01.1]} 6. Nf3 {[%clk 0:02:58.9]} 6... Nbd7 {[%clk 0:03:00.6]} 7.
O-O {[%clk 0:02:58.7]} 7... e5 {[%clk 0:03:00.9]} 8. e4 {[%clk 0:02:58.5]} 8...
exd4 {[%clk 0:02:59.9]} 9. Nxd4 {[%clk 0:02:58.4]} 9... Nc5 {[%clk 0:03:00.5]}
10. h3 {[%clk 0:02:56.7]} 10... Re8 {[%clk 0:03:00.5]} 11. Re1 {[%clk
0:02:56.9]} 11... Bd7 {[%clk 0:03:00.8]} 12. b4 {[%clk 0:02:45.4]} 12... Ne6
{[%clk 0:02:52.2]} 13. Be3 {[%clk 0:02:44.3]} 13... a5 {[%clk 0:02:52]} 14. a3
{[%clk 0:02:31.6]} 14... h5 {[%clk 0:02:26.8]} 15. Qd2 {[%clk 0:02:24.4]} 15...
Nh7 {[%clk 0:02:16.3]} 16. Rad1 {[%clk 0:02:18.8]} 16... axb4 {[%clk 0:02:15.7]}
17. axb4 {[%clk 0:02:18.6]} 17... h4 {[%clk 0:02:04]} 18. g4 {[%clk 0:02:16]}
18... g5 {[%clk 0:02:01.8]} 19. Nf5 {[%clk 0:02:14.4]} 19... Be5 {[%clk
0:02:01.6]} 20. Bf1 {[%clk 0:02:05.2]} 20... Nf4 {[%clk 0:01:55.2]} 21. c5
{[%clk 0:02:03.2]} 21... Bxf5 {[%clk 0:01:52.8]} 22. exf5 {[%clk 0:02:04.1]}
22... dxc5 {[%clk 0:01:43.2]} 23. Qc2 {[%clk 0:01:54.5]} 23... Qc8 {[%clk
0:01:25.1]} 24. bxc5 {[%clk 0:01:46]} 24... Nf6 {[%clk 0:01:20.6]} 25. Nb5
{[%clk 0:00:54.1]} 25... Ra5 {[%clk 0:00:41.5]} 26. Qb3 {[%clk 0:00:46.9]} 26...
Kg7 {[%clk 0:00:33.6]} 27. Bd2 {[%clk 0:00:45.2]} 27... Qa8 {[%clk 0:00:25.7]}
28. Rxe5 {[%clk 0:00:21.7]} 28... Rxe5 {[%clk 0:00:24.8]} 29. Qc3 {[%clk
0:00:21.9]} 29... Rd5 {[%clk 0:00:08.9]} 30. Rc1 {[%clk 0:00:14.4]} 30... Rxb5
{[%clk 0:00:08.7]} 31. Bxb5 {[%clk 0:00:12.9]} 31... c6 {[%clk 0:00:03.9]} 32.
Bf1 {[%clk 0:00:12.2]} 32... Qb8 {[%clk 0:00:04.3]} 33. Be3 {[%clk 0:00:10.3]}
33... Qe5 {[%clk 0:00:03.9]} 34. Qxe5 {[%clk 0:00:10.2]} 34... Rxe5 {[%clk
0:00:04.8]} 35. Bd4 {[%clk 0:00:10.7]} 35... Rd5 {[%clk 0:00:05.4]} 36. Bb2
{[%clk 0:00:10.2]} 36... Rd2 {[%clk 0:00:05.3]} 37. Bc3 {[%clk 0:00:08.9]} 37...
Rd5 {[%clk 0:00:05.4]} 38. Ba1 {[%clk 0:00:07.9]} 38... Rd7 {[%clk 0:00:05.3]}
39. Rb1 {[%clk 0:00:07.2]} 39... Nd5 {[%clk 0:00:05.6]} 40. Rd1 {[%clk
0:00:07.2]} 40... Kf8 {[%clk 0:00:05.7]} 41. Be5 {[%clk 0:00:06.9]} 41... Ke8
{[%clk 0:00:06.1]} 42. Bd6 {[%clk 0:00:06.6]} 42... b6 {[%clk 0:00:05.7]} 43.
Bc4 {[%clk 0:00:06.3]} 43... bxc5 {[%clk 0:00:05.8]} 44. Bxc5 {[%clk 0:00:07.2]}
44... Nf4 {[%clk 0:00:05.5]} 45. Re1+ {[%clk 0:00:06.6]} 45... Kd8 {[%clk
0:00:04.2]} 46. Bf1 {[%clk 0:00:06.6]} 46... Kc7 {[%clk 0:00:04.3]} 47. Be3
{[%clk 0:00:05.7]} 47... N6d5 {[%clk 0:00:04.5]} 48. Bd4 {[%clk 0:00:05.9]}
48... f6 {[%clk 0:00:04.9]} 49. Rc1 {[%clk 0:00:04.4]} 49... Kd6 {[%clk
0:00:05.1]} 50. Bc5+ {[%clk 0:00:04.5]} 50... Kc7 {[%clk 0:00:05.6]} 51. Kh2
{[%clk 0:00:04.8]} 51... Rd8 {[%clk 0:00:05.5]} 52. Bd4 {[%clk 0:00:05]} 52...
Kd6 {[%clk 0:00:05.2]} 53. Bc5+ {[%clk 0:00:04.7]} 53... Kd7 {[%clk 0:00:05.9]}
54. Bg2 {[%clk 0:00:05.6]} 54... Re8 {[%clk 0:00:05.9]} 55. Bf3 {[%clk
0:00:05.4]} 55... Rb8 {[%clk 0:00:05.5]} 56. Bd4 {[%clk 0:00:05.4]} 56... Rb3
{[%clk 0:00:05.4]} 57. Bg2 {[%clk 0:00:03.7]} 57... Rd3 {[%clk 0:00:05.5]} 58.
Be3 {[%clk 0:00:03.2]} 58... Nxg2 {[%clk 0:00:05.3]} 59. Kxg2 {[%clk 0:00:01.8]}
59... Nxe3+ {[%clk 0:00:05.9]} 60. fxe3 {[%clk 0:00:02.4]} 60... Rxe3 {[%clk
0:00:06.8]} 61. Rd1+ {[%clk 0:00:01.5]} 61... Kc7 {[%clk 0:00:07.3]} 0-1

[Event "*** Titled Tuesday Blitz"]
[Site "Chess.com"]
[Date "2021.03.16"]
[Round "5"]
[White "DinaBelenkaya"]
[Black "MuhittinBuker"]
[Result "1/2-1/2"]
[WhiteElo "2372"]
[BlackElo "2193"]
[TimeControl "180+1"]
[EndTime "10:55:41 PDT"]
[Termination "Game drawn - insufficient material"]

1. e4 {[%clk 0:03:00.9]} 1... e5 {[%clk 0:02:58.1]} 2. Nf3 {[%clk 0:02:53.5]}
2... Nc6 {[%clk 0:02:58.4]} 3. Bb5 {[%clk 0:02:50.4]} 3... a6 {[%clk 0:02:57.5]}
4. Ba4 {[%clk 0:02:50.4]} 4... Nf6 {[%clk 0:02:57.6]} 5. Qe2 {[%clk 0:02:42.2]}
5... b5 {[%clk 0:02:51.9]} 6. Bb3 {[%clk 0:02:41.7]} 6... Be7 {[%clk 0:02:51.9]}
7. d3 {[%clk 0:02:41.3]} 7... O-O {[%clk 0:02:50.9]} 8. Bg5 {[%clk 0:02:35.7]}
8... d6 {[%clk 0:02:50.7]} 9. Nbd2 {[%clk 0:02:34.4]} 9... Na5 {[%clk
0:02:48.9]} 10. Nf1 {[%clk 0:02:32.7]} 10... Nxb3 {[%clk 0:02:48.8]} 11. axb3
{[%clk 0:02:31.6]} 11... Nd7 {[%clk 0:02:49.1]} 12. Bxe7 {[%clk 0:02:27.8]}
12... Qxe7 {[%clk 0:02:50]} 13. Ne3 {[%clk 0:02:28.7]} 13... c6 {[%clk
0:02:39.7]} 14. b4 {[%clk 0:02:26.8]} 14... Nb6 {[%clk 0:02:32.3]} 15. O-O
{[%clk 0:02:24]} 15... g6 {[%clk 0:02:32.2]} 16. b3 {[%clk 0:02:21.9]} 16... Re8
{[%clk 0:02:26.7]} 17. Nd2 {[%clk 0:02:17.5]} 17... Kg7 {[%clk 0:02:25]} 18. c4
{[%clk 0:02:03.2]} 18... Bb7 {[%clk 0:01:58.7]} 19. Nb1 {[%clk 0:01:55.6]} 19...
Nd7 {[%clk 0:01:57]} 20. Nc3 {[%clk 0:01:54.3]} 20... Nf6 {[%clk 0:01:56.7]} 21.
Ra2 {[%clk 0:01:41.6]} 21... d5 {[%clk 0:01:50.7]} 22. exd5 {[%clk 0:01:29.7]}
22... Qxb4 {[%clk 0:01:45.4]} 23. Ne4 {[%clk 0:01:15.7]} 23... cxd5 {[%clk
0:01:33.9]} 24. Nxf6 {[%clk 0:01:08.2]} 24... Kxf6 {[%clk 0:01:33.7]} 25. Qf3+
{[%clk 0:01:01.5]} 25... Kg7 {[%clk 0:01:31.8]} 26. Nxd5 {[%clk 0:01:02.2]}
26... Qxb3 {[%clk 0:01:12.7]} 27. Rfa1 {[%clk 0:00:57.8]} 27... e4 {[%clk
0:01:10.5]} 28. Qf6+ {[%clk 0:00:51.4]} 28... Kg8 {[%clk 0:01:08.2]} 29. Nc7
{[%clk 0:00:51.6]} 29... exd3 {[%clk 0:00:56.6]} 30. Nxe8 {[%clk 0:00:51.1]}
30... Rxe8 {[%clk 0:00:54.5]} 31. Rb2 {[%clk 0:00:36]} 31... Qxc4 {[%clk
0:00:51.5]} 32. h3 {[%clk 0:00:32.5]} 32... b4 {[%clk 0:00:40.7]} 33. Qb6 {[%clk
0:00:28.4]} 33... Qd5 {[%clk 0:00:22.8]} 34. f3 {[%clk 0:00:25.6]} 34... d2
{[%clk 0:00:15.1]} 35. Qf2 {[%clk 0:00:25.6]} 35... d1=Q+ {[%clk 0:00:09.5]} 36.
Rxd1 {[%clk 0:00:25.9]} 36... Qxd1+ {[%clk 0:00:09.8]} 37. Kh2 {[%clk
0:00:26.8]} 37... a5 {[%clk 0:00:10]} 38. Rd2 {[%clk 0:00:26.3]} 38... Qb3
{[%clk 0:00:09.1]} 39. Rd7 {[%clk 0:00:27.2]} 39... Bc6 {[%clk 0:00:06.8]} 40.
Rc7 {[%clk 0:00:27.7]} 40... Qd5 {[%clk 0:00:06.5]} 41. Qb6 {[%clk 0:00:26.6]}
41... Qe5+ {[%clk 0:00:05.6]} 42. Kh1 {[%clk 0:00:26.4]} 42... Qe1+ {[%clk
0:00:05.3]} 43. Kh2 {[%clk 0:00:27.2]} 43... Qe5+ {[%clk 0:00:05.8]} 44. Kh1
{[%clk 0:00:27.4]} 44... Bxf3 {[%clk 0:00:06.4]} 45. gxf3 {[%clk 0:00:26.6]}
45... Qe1+ {[%clk 0:00:07]} 46. Qg1 {[%clk 0:00:23.2]} 46... Qxg1+ {[%clk
0:00:07]} 47. Kxg1 {[%clk 0:00:24.1]} 47... Ra8 {[%clk 0:00:07]} 48. Rb7 {[%clk
0:00:24.2]} 48... Kf8 {[%clk 0:00:04.5]} 49. Kf2 {[%clk 0:00:23.5]} 49... Ke8
{[%clk 0:00:05]} 50. Ke3 {[%clk 0:00:23.7]} 50... Kd8 {[%clk 0:00:05.5]} 51. Kd3
{[%clk 0:00:24.2]} 51... Kc8 {[%clk 0:00:06]} 52. Rxf7 {[%clk 0:00:24.3]} 52...
a4 {[%clk 0:00:04.6]} 53. Kc2 {[%clk 0:00:19.3]} 53... a3 {[%clk 0:00:02.5]} 54.
Kb3 {[%clk 0:00:19.5]} 54... a2 {[%clk 0:00:02.6]} 55. Rf8+ {[%clk 0:00:19.9]}
55... Kb7 {[%clk 0:00:01.5]} 56. Rxa8 {[%clk 0:00:20.8]} 56... Kxa8 {[%clk
0:00:01.9]} 57. Kxa2 {[%clk 0:00:21.7]} 57... Kb7 {[%clk 0:00:02.7]} 58. Kb3
{[%clk 0:00:22.6]} 58... Kb6 {[%clk 0:00:03.5]} 59. Kxb4 {[%clk 0:00:23.4]}
59... Kc6 {[%clk 0:00:03.9]} 60. Kc4 {[%clk 0:00:24.3]} 60... Kd6 {[%clk
0:00:04.4]} 61. Kd4 {[%clk 0:00:24.8]} 61... Ke6 {[%clk 0:00:05]} 62. Ke4 {[%clk
0:00:25.4]} 62... Kf6 {[%clk 0:00:05.5]} 63. Kf4 {[%clk 0:00:26]} 63... g5+
{[%clk 0:00:05.9]} 64. Kg4 {[%clk 0:00:26]} 64... Kg6 {[%clk 0:00:06.5]} 65. h4
{[%clk 0:00:23.9]} 65... h5+ {[%clk 0:00:06.7]} 66. Kg3 {[%clk 0:00:24.4]} 66...
gxh4+ {[%clk 0:00:06]} 67. Kxh4 {[%clk 0:00:25.3]} 67... Kf5 {[%clk 0:00:06.5]}
68. Kxh5 {[%clk 0:00:25.6]} 68... Kf4 {[%clk 0:00:07.1]} 69. Kg6 {[%clk
0:00:26.1]} 69... Kxf3 {[%clk 0:00:08]} 1/2-1/2

[Event "*** Titled Tuesday Blitz"]
[Site "Chess.com"]
[Date "2021.03.16"]
[Round "5"]
[White "blitzking1729"]
[Black "zverr1"]
[Result "0-1"]
[WhiteElo "2615"]
[BlackElo "2477"]
[TimeControl "180+1"]
[EndTime "10:55:46 PDT"]
[Termination "zverr1 won on time"]

1. c4 {[%clk 0:03:00.9]} 1... e5 {[%clk 0:02:59.8]} 2. Nc3 {[%clk 0:03:00.9]}
2... Nc6 {[%clk 0:03:00.4]} 3. Nf3 {[%clk 0:03:01.1]} 3... f5 {[%clk 0:02:59.4]}
4. d4 {[%clk 0:03:00.8]} 4... e4 {[%clk 0:02:59.9]} 5. Ng1 {[%clk 0:02:57.3]}
5... g6 {[%clk 0:02:56]} 6. h4 {[%clk 0:02:54.8]} 6... Bg7 {[%clk 0:02:54.6]} 7.
e3 {[%clk 0:02:54.2]} 7... Nf6 {[%clk 0:02:53.1]} 8. h5 {[%clk 0:02:50.9]} 8...
O-O {[%clk 0:02:51]} 9. hxg6 {[%clk 0:02:46.9]} 9... hxg6 {[%clk 0:02:51.9]} 10.
Nh3 {[%clk 0:02:43.5]} 10... d6 {[%clk 0:02:10.7]} 11. Qb3 {[%clk 0:02:08.4]}
11... Na5 {[%clk 0:01:42.3]} 12. Qa4 {[%clk 0:02:07.3]} 12... c5 {[%clk
0:01:39.4]} 13. b4 {[%clk 0:01:57.3]} 13... Nc6 {[%clk 0:01:31.9]} 14. bxc5
{[%clk 0:01:53.5]} 14... dxc5 {[%clk 0:01:31.3]} 15. d5 {[%clk 0:01:53.6]} 15...
Nxd5 {[%clk 0:01:26.3]} 16. Nxd5 {[%clk 0:01:37.7]} 16... Bxa1 {[%clk
0:01:27.2]} 17. Ba3 {[%clk 0:01:32.5]} 17... Qd6 {[%clk 0:01:12.3]} 18. Qb5
{[%clk 0:01:26.1]} 18... Qe5 {[%clk 0:00:59.4]} 19. Bxc5 {[%clk 0:01:15]} 19...
Rd8 {[%clk 0:00:25.2]} 20. Be2 {[%clk 0:01:07.1]} 20... Rxd5 {[%clk 0:00:21.3]}
21. cxd5 {[%clk 0:01:01.4]} 21... Bc3+ {[%clk 0:00:18.7]} 22. Kf1 {[%clk
0:00:58.2]} 22... a6 {[%clk 0:00:16.3]} 23. Qb3 {[%clk 0:00:51]} 23... Na5
{[%clk 0:00:15.4]} 24. Qd1 {[%clk 0:00:49.9]} 24... Bd7 {[%clk 0:00:12.2]} 25.
Nf4 {[%clk 0:00:48]} 25... Kg7 {[%clk 0:00:12.1]} 26. g4 {[%clk 0:00:36.5]}
26... Bb5 {[%clk 0:00:11.1]} 27. gxf5 {[%clk 0:00:34.1]} 27... Bxe2+ {[%clk
0:00:08.8]} 28. Qxe2 {[%clk 0:00:32.6]} 28... Qxf5 {[%clk 0:00:09.7]} 29. Rg1
{[%clk 0:00:31.6]} 29... Rh8 {[%clk 0:00:05.7]} 30. Rxg6+ {[%clk 0:00:25.4]}
30... Kf7 {[%clk 0:00:05.5]} 31. Rg1 {[%clk 0:00:21.7]} 31... b5 {[%clk
0:00:03.9]} 32. Qg4 {[%clk 0:00:20.2]} 32... Qxg4 {[%clk 0:00:03.8]} 33. Rxg4
{[%clk 0:00:20.1]} 33... Nc4 {[%clk 0:00:04.7]} 34. d6 {[%clk 0:00:16]} 34...
Ne5 {[%clk 0:00:05]} 35. Rg1 {[%clk 0:00:15.3]} 35... Nf3 {[%clk 0:00:05.1]} 36.
Nd5 {[%clk 0:00:11.2]} 36... Nxg1 {[%clk 0:00:04.9]} 37. Kxg1 {[%clk 0:00:10.5]}
37... Be5 {[%clk 0:00:04.3]} 38. Nb6 {[%clk 0:00:08.6]} 38... Rd8 {[%clk
0:00:03]} 39. d7 {[%clk 0:00:08.2]} 39... Ke6 {[%clk 0:00:03.1]} 40. f4 {[%clk
0:00:06.2]} 40... exf3 {[%clk 0:00:02.7]} 41. Kf2 {[%clk 0:00:06.5]} 41... Bc7
{[%clk 0:00:03.6]} 42. Kxf3 {[%clk 0:00:03.9]} 42... Bxb6 {[%clk 0:00:04]} 43.
Bxb6 {[%clk 0:00:04.8]} 43... Rxd7 {[%clk 0:00:04.9]} 44. Bd4 {[%clk 0:00:05.2]}
44... Rc7 {[%clk 0:00:04.7]} 45. Ke4 {[%clk 0:00:06.1]} 45... Rc2 {[%clk
0:00:04.9]} 46. a3 {[%clk 0:00:06.6]} 46... Ra2 {[%clk 0:00:04.4]} 47. Bc5
{[%clk 0:00:06.8]} 47... Rc2 {[%clk 0:00:04.6]} 48. Bd4 {[%clk 0:00:05.4]} 48...
Rc4 {[%clk 0:00:04.5]} 49. Kd3 {[%clk 0:00:05.6]} 49... Ra4 {[%clk 0:00:03]} 50.
Bc5 {[%clk 0:00:05.7]} 50... Kd5 {[%clk 0:00:03.5]} 51. Bb4 {[%clk 0:00:05.6]}
51... a5 {[%clk 0:00:03.2]} 52. e4+ {[%clk 0:00:05.8]} 52... Ke6 {[%clk
0:00:03.4]} 53. Bf8 {[%clk 0:00:05.3]} 53... Kf7 {[%clk 0:00:03.2]} 54. Bc5
{[%clk 0:00:04.8]} 54... Ke6 {[%clk 0:00:04.1]} 55. Bf8 {[%clk 0:00:04.4]} 55...
Rc4 {[%clk 0:00:04.2]} 56. Ke3 {[%clk 0:00:01]} 56... Rc8 {[%clk 0:00:04.2]} 0-1